fUST/lending_fUST_20250818
["ID","MTS","AMOUNT","RATE_DAILY","PERIOD"]
[379948391,1755447048229,-1059.03,0.00019452,2]
[379948393,1755447048239,-480.0,0.00019452,2]
[379948395,1755447048248,-337.05,0.00019452,2]
[379948397,1755447048258,-996.4,0.00019452,2]
[379948399,1755447048268,-480.0,0.00019452,2]
[379948401,1755447048278,-480.0,0.00019452,2]
[379948403,1755447048288,-480.0,0.00019452,2]
[379948405,1755447048297,-480.0,0.00019452,2]
[379948407,1755447048307,-480.0,0.00019452,2]
[379948409,1755447048318,-480.0,0.00019452,2]
[379948411,1755447048328,-566.94,0.00019452,2]
[379948413,1755447048338,-480.0,0.00019452,2]
[379948415,1755447048348,-480.0,0.00019452,2]
[379948417,1755447048357,-480.0,0.00019452,2]
[379948419,1755447048367,-1038.69,0.00019452,2]
[379948422,1755447048380,-480.0,0.00019452,2]
[379948423,1755447048390,-440.74097291,0.00019452,2]
[379948425,1755447048399,-480.0,0.00019452,2]
[379948427,1755447048408,-480.0,0.00019452,2]
[379948429,1755447048418,-4225.92,0.00019452,2]
[379948431,1755447048427,-480.0,0.00019452,2]
[379948433,1755447048438,-601.18,0.00019452,2]
[379948435,1755447048448,-1139.88,0.00019452,2]
[379948437,1755447048457,-480.0,0.00019452,2]
[379948439,1755447048467,-480.0,0.00019452,2]
[379948441,1755447048476,-3141.95,0.00019546,2]
[379948443,1755447048486,-500.0,0.00019547,2]
[379948445,1755447048495,-200.0,0.00019561,20]
[379948447,1755447048505,-200.0,0.00019561,20]
[379948449,1755447048515,-200.0,0.00019561,20]
[379948451,1755447048525,-200.0,0.00019561,20]
[379948453,1755447048535,-200.0,0.00019561,20]
[379948455,1755447048545,-200.0,0.00019561,20]
[379948457,1755447048554,-200.0,0.00019561,20]
[379948459,1755447048564,-200.0,0.00019561,20]
[379948461,1755447048573,-200.0,0.00019561,20]
[379948463,1755447048583,-200.0,0.00019561,20]
[379948465,1755447048592,-600.0,0.00019561,20]
[379948467,1755447048601,-151.0,0.000196,2]
[379948469,1755447048611,-3388.6288461,0.00019626,2]
[379948471,1755447048620,-8000.0,0.00019641,2]
[379948473,1755447048630,-1033.302612,0.00019644,2]
[379948475,1755447048639,-1033.302612,0.00019644,2]
[379948477,1755447048648,-151.0,0.00019644,2]
[379948479,1755447048658,-151.0,0.00019644,2]
[379948481,1755447048667,-151.0,0.00019644,2]
[379948483,1755447048677,-151.0,0.00019644,2]
[379948485,1755447048687,-151.0,0.00019644,2]
[379948487,1755447048697,-151.0,0.00019644,2]
[379948489,1755447048707,-185.797294,0.00019644,2]
[379948491,1755447048716,-185.797294,0.00019644,2]
[379948492,1755447048727,-151.0,0.00019644,2]
[379948494,1755447048737,-1700.550371,0.00019644,2]
[379948496,1755447048747,-1700.550371,0.00019644,2]
[379948498,1755447048757,-151.0,0.00019644,2]
[379948500,1755447048767,-4194.06,0.00019644,2]
[379948502,1755447048776,-4194.06,0.00019644,2]
[379948504,1755447048786,-4194.06,0.00019644,2]
[379948506,1755447048796,-4194.06,0.00019644,2]
[379948508,1755447048805,-4194.16730631,0.00019644,2]
[379948510,1755447048815,-162.296285,0.00019644,2]
[379948512,1755447048825,-162.296285,0.00019644,2]
[379948514,1755447048834,-500.0,0.00019644,2]
[379948516,1755447048843,-192.302906,0.00019644,2]
[379948518,1755447048853,-192.302906,0.00019644,2]
[379948520,1755447048862,-225.638699,0.00019644,2]
[379948522,1755447048871,-196.95185,0.00019644,2]
[379948524,1755447048881,-151.0,0.00019644,2]
[379948526,1755447048890,-196.95185,0.00019644,2]
[379948528,1755447048900,-225.638699,0.00019644,2]
[379948530,1755447048910,-151.0,0.00019644,2]
[379948532,1755447048919,-151.0,0.00019644,2]
[379948534,1755447048931,-151.0,0.00019644,2]
[379948536,1755447048942,-151.0,0.00019644,2]
[379948538,1755447048955,-151.0,0.00019644,2]
[379948540,1755447048965,-266.524174,0.00019644,2]
[379948542,1755447048975,-266.524174,0.00019644,2]
[379948544,1755447048985,-1396.993208,0.00019644,2]
[379948545,1755447048994,-151.0,0.00019644,2]
[379948547,1755447049005,-1396.993208,0.00019644,2]
[379948549,1755447049016,-562.138195,0.00019644,2]
[379948552,1755447049028,-562.138195,0.00019644,2]
[379948553,1755447049039,-151.0,0.00019644,2]
[379948555,1755447049048,-12682.46447135,0.00019653,2]
[379948557,1755447049058,-160.0,0.00019653,2]
[379948559,1755447049067,-843.71309931,0.00019653,2]
[379948561,1755447049077,-160.0,0.00019653,2]
[379948563,1755447049088,-216.83204348,0.00019653,2]
[379948565,1755447049097,-215.71995163,0.00019653,2]
[379948567,1755447049107,-375.77065697,0.00019653,2]
[379948569,1755447049117,-528.48506731,0.00019653,2]
[379948571,1755447049126,-160.0,0.00019653,2]
[379948573,1755447049136,-417.15472785,0.00019653,2]
[379948575,1755447049145,-160.0,0.00019653,2]
[379948577,1755447049155,-160.0,0.00019653,2]
[379948579,1755447049165,-160.0,0.00019653,2]
[379948581,1755447049175,-160.0,0.00019653,2]
[379948583,1755447049184,-232.1512529,0.00019653,2]
[379948585,1755447049194,-160.0,0.00019653,2]
[379948587,1755447049204,-151.0,0.00019699,2]
[379948590,1755447049222,-245.550855,0.00019699,2]
[379948592,1755447049235,-219.168111,0.00019699,2]
[379948594,1755447049245,-151.0,0.00019699,2]
[379948596,1755447049257,-151.0,0.00019699,2]
[379948598,1755447049267,-151.0,0.00019699,2]
[379948600,1755447049278,-245.550855,0.00019699,2]
[379948602,1755447049288,-239.274423,0.00019699,2]
[379948604,1755447049301,-239.274423,0.00019699,2]
[379948606,1755447049311,-151.0,0.00019699,2]
[379948608,1755447049321,-151.0,0.00019699,2]
[379948610,1755447049331,-151.0,0.00019699,2]
[379948612,1755447049341,-263.492621,0.00019699,2]
[379948614,1755447049352,-714.199505,0.00019699,2]
[379948616,1755447049362,-714.199505,0.00019699,2]
[379948618,1755447049372,-151.0,0.00019699,2]
[379948620,1755447049382,-151.0,0.00019699,2]
[379948622,1755447049391,-151.0,0.00019699,2]
[379948624,1755447049400,-151.0,0.00019699,2]
[379948626,1755447049410,-151.0,0.00019699,2]
[379948628,1755447049420,-500.0,0.00019699,2]
[379948630,1755447049430,-151.0,0.000197,2]
[379948632,1755447049440,-160.0,0.00019705,2]
[379948634,1755447049449,-1000.0,0.00019721,2]
[379948636,1755447049458,-500.0,0.00019721,2]
[379948638,1755447049469,-1000.0,0.00019721,2]
[379948640,1755447049479,-1000.0,0.00019721,2]
[379948642,1755447049490,-1000.0,0.00019721,2]
[379948644,1755447049500,-1000.0,0.00019721,2]
[379948646,1755447049510,-1000.0,0.00019721,2]
[379948648,1755447049520,-500.0,0.00019725,2]
[379948650,1755447049530,-500.0,0.00019725,2]
[379948652,1755447049542,-576.35149402,0.00019725,2]
[379948654,1755447049552,-480.0,0.00019725,2]
[379948656,1755447049562,-151.0,0.00019726,2]
[379948658,1755447049572,-500.0,0.00019726,2]
[379948660,1755447049581,-198.0,0.00019726,2]
[379948662,1755447049591,-151.0,0.00019726,2]
[379948664,1755447049602,-1721.0,0.00019726,2]
[379948666,1755447049613,-151.0,0.00019726,2]
[379948668,1755447049623,-151.0,0.00019726,2]
[379948670,1755447049632,-151.0,0.00019726,2]
[379948672,1755447049642,-547.0,0.00019726,2]
[379948674,1755447049652,-480.0,0.00019726,2]
[379948676,1755447049661,-480.0,0.00019726,2]
[379948678,1755447049671,-480.0,0.00019726,2]
[379948680,1755447049680,-500.0,0.00019726,2]
[379948682,1755447049690,-600.77603321,0.00019726,2]
[379948684,1755447049700,-500.0,0.00019726,2]
[379948686,1755447049709,-500.0,0.00019726,2]
[379948688,1755447049719,-480.0,0.00019726,2]
[379948690,1755447049728,-480.0,0.00019726,2]
[379948691,1755447049739,-460.0,0.00019726,2]
[379948693,1755447049750,-480.0,0.00019726,2]
[379948695,1755447049759,-480.0,0.00019726,2]
[379948697,1755447049769,-480.0,0.00019726,2]
[379948699,1755447049779,-480.0,0.00019726,2]
[379948701,1755447049789,-480.0,0.00019726,2]
[379948703,1755447049798,-480.0,0.00019726,2]
[379948705,1755447049808,-480.0,0.00019726,2]
[379948707,1755447049818,-2798.98,0.00019726,2]
[379948709,1755447049828,-1033.302612,0.00019726,2]
[379948711,1755447049837,-1033.302612,0.00019726,2]
[379948713,1755447049847,-151.0,0.00019726,2]
[379948715,1755447049857,-151.497329,0.00019726,2]
[379948717,1755447049867,-151.0,0.00019726,2]
[379948719,1755447049876,-151.0,0.00019726,2]
[379948721,1755447049886,-480.0,0.00019726,2]
[379948723,1755447049895,-480.0,0.00019726,2]
[379948725,1755447049905,-151.0,0.00019726,2]
[379948727,1755447049915,-185.797294,0.00019726,2]
[379948729,1755447049925,-185.797294,0.00019726,2]
[379948731,1755447049935,-480.0,0.00019726,2]
[379948733,1755447049947,-3648.89,0.00019726,2]
[379948735,1755447049958,-299.76,0.00019726,2]
[379948737,1755447049967,-151.0,0.00019726,2]
[379948739,1755447049977,-1700.550371,0.00019726,2]
[379948741,1755447049988,-1700.550371,0.00019726,2]
[379948743,1755447049998,-151.0,0.00019726,2]
[379948745,1755447050008,-176.6238557,0.00019726,2]
[379948747,1755447050018,-480.0,0.00019726,2]
[379948749,1755447050027,-480.0,0.00019726,2]
[379948751,1755447050039,-162.296285,0.00019726,2]
[379948753,1755447050048,-480.0,0.00019726,2]
[379948755,1755447050058,-162.296285,0.00019726,2]
[379948757,1755447050067,-480.0,0.00019726,2]
[379948759,1755447050077,-480.0,0.00019726,2]
[379948761,1755447050086,-192.302906,0.00019726,2]
[379948763,1755447050095,-192.302906,0.00019726,2]
[379948765,1755447050104,-460.0,0.00019726,2]
[379948767,1755447050114,-225.638699,0.00019726,2]
[379948784,1755447050277,-196.95185,0.00019726,2]
[379948786,1755447050287,-480.0,0.00019726,2]
[379948788,1755447050297,-151.0,0.00019726,2]
[379948790,1755447050306,-196.95185,0.00019726,2]
[379948792,1755447050316,-225.638699,0.00019726,2]
[379948794,1755447050326,-480.0,0.00019726,2]
[379948796,1755447050335,-557.83,0.00019726,2]
[379948798,1755447050345,-480.0,0.00019726,2]
[379948800,1755447050355,-2707.54,0.00019726,2]
[379948802,1755447050364,-999.75,0.00019726,2]
[379948804,1755447050374,-480.0,0.00019726,2]
[379948806,1755447050384,-151.0,0.00019726,2]
[379948808,1755447050394,-588.85,0.00019726,2]
[379948810,1755447050403,-512.61,0.00019726,2]
[379948812,1755447050413,-151.0,0.00019726,2]
[379948814,1755447050423,-151.0,0.00019726,2]
[379948816,1755447050433,-2221.98,0.00019726,2]
[379948818,1755447050442,-151.0,0.00019726,2]
[379948820,1755447050451,-151.0,0.00019726,2]
[379948822,1755447050461,-480.0,0.00019726,2]
[379948824,1755447050471,-1059.03,0.00019726,2]
[379948826,1755447050480,-266.524174,0.00019726,2]
[379948828,1755447050490,-480.0,0.00019726,2]
[379948830,1755447050500,-266.524174,0.00019726,2]
[379948832,1755447050510,-996.4,0.00019726,2]
[379948834,1755447050519,-480.0,0.00019726,2]
[379948836,1755447050529,-480.0,0.00019726,2]
[379948838,1755447050538,-555.25,0.00019726,2]
[379948840,1755447050547,-460.0,0.00019726,2]
[379948841,1755447050557,-460.0,0.00019726,2]
[379948843,1755447050566,-480.0,0.00019726,2]
[379948845,1755447050575,-480.0,0.00019726,2]
[379948847,1755447050586,-156.78,0.00019726,2]
[379948849,1755447050596,-1396.993208,0.00019726,2]
[379948851,1755447050606,-151.0,0.00019726,2]
[379948853,1755447050616,-480.0,0.00019726,2]
[379948855,1755447050625,-1396.993208,0.00019726,2]
[379948857,1755447050635,-1038.69,0.00019726,2]
[379948859,1755447050645,-562.138195,0.00019726,2]
[379948860,1755447050654,-562.138195,0.00019726,2]
[379948861,1755447050663,-480.0,0.00019726,2]
[379948862,1755447050672,-480.0,0.00019726,2]
[379948863,1755447050682,-480.0,0.00019726,2]
[379948864,1755447050691,-4225.92,0.00019726,2]
[379948865,1755447050700,-601.18,0.00019726,2]
[379948866,1755447050710,-480.0,0.00019726,2]
[379948867,1755447050719,-1139.88,0.00019726,2]
[379948868,1755447050728,-480.0,0.00019726,2]
[379948869,1755447050737,-480.0,0.00019726,2]
[379948870,1755447050746,-8000.0,0.00019762,2]
[379948872,1755447050756,-151.0,0.00019762,2]
[379948874,1755447050765,-151.0,0.00019762,2]
[379948876,1755447050775,-151.0,0.00019762,2]
[379948878,1755447050784,-151.0,0.00019762,2]
[379948880,1755447050794,-151.0,0.00019773,2]
[379948882,1755447050803,-245.550855,0.00019773,2]
[379948884,1755447050812,-151.0,0.00019773,2]
[379948886,1755447050822,-151.0,0.00019773,2]
[379948887,1755447050831,-151.0,0.00019773,2]
[379948889,1755447050841,-245.550855,0.00019773,2]
[379948891,1755447050850,-239.274423,0.00019773,2]
[379948894,1755447050861,-239.274423,0.00019773,2]
[379948895,1755447050870,-151.0,0.00019773,2]
[379948897,1755447050880,-151.0,0.00019773,2]
[379948899,1755447050889,-151.0,0.00019773,2]
[379948901,1755447050898,-714.199505,0.00019773,2]
[379948903,1755447050908,-714.199505,0.00019773,2]
[379948905,1755447050917,-151.0,0.00019773,2]
[379948907,1755447050927,-151.0,0.000198,2]
[379948909,1755447050936,-900.0,0.00019812,2]
[379948911,1755447050947,-1124.23332519,0.0001986,2]
[379948913,1755447050957,-793.248125,0.00019863,2]
[379948915,1755447050970,-9000.0,0.00019881,2]
[379948917,1755447050980,-151.0,0.000199,2]
[379948919,1755447050991,-151.0,0.000199,2]
[379948922,1755447051001,-1000.0,0.000199,2]
[379948924,1755447051011,-9000.0,0.00019962,2]
[379948925,1755447051020,-500.0,0.00019973,2]
[379948927,1755447051029,-500.0,0.00019973,2]
[379948929,1755447051039,-425.24473047,0.00019973,2]
[379948931,1755447051048,-500.0,0.00019973,2]
[379948933,1755447051057,-500.0,0.00019973,2]
[379948936,1755447051067,-500.0,0.00019973,2]
[379948937,1755447051077,-500.0,0.00019973,2]
[379948939,1755447051086,-500.0,0.00019973,2]
[379948941,1755447051095,-500.0,0.00019973,2]
[379948943,1755447051105,-309.5546377,0.00019973,2]
[379948944,1755447051115,-500.0,0.00019973,2]
[379948946,1755447051125,-500.0,0.00019973,2]
[379948948,1755447051134,-500.0,0.00019973,2]
[379948950,1755447051143,-500.0,0.00019973,2]
[379948952,1755447051153,-500.0,0.00019973,2]
[379948954,1755447051162,-340.84167788,0.00019973,2]
[379948956,1755447051173,-258.67006152,0.00019973,2]
[379948958,1755447051183,-206.17399241,0.00019973,2]
[379948960,1755447051193,-159.60508025,0.00019973,2]
[379948962,1755447051203,-500.0,0.00019973,2]
[379948964,1755447051212,-158.62980632,0.00019973,2]
[379948966,1755447051222,-160.63757412,0.00019973,2]
[379948968,1755447051231,-500.0,0.00019973,2]
[379948970,1755447051240,-500.0,0.00019973,2]
[379948972,1755447051250,-500.0,0.00019973,2]
[379948974,1755447051262,-1700.550371,0.00019973,2]
[379948976,1755447051271,-199.435203,0.00019973,2]
[379948977,1755447051280,-1700.550371,0.00019973,2]
[379948980,1755447051290,-162.296285,0.00019973,2]
[379948981,1755447051300,-162.296285,0.00019973,2]
[379948983,1755447051309,-192.302906,0.00019973,2]
[379948985,1755447051319,-192.302906,0.00019973,2]
[379948987,1755447051328,-1033.302612,0.00019999,2]
[379948989,1755447051337,-1033.302612,0.00019999,2]
[379948991,1755447051347,-151.0,0.00019999,2]
[379948993,1755447051356,-151.0,0.00019999,2]
[379948995,1755447051365,-151.0,0.00019999,2]
[379948997,1755447051374,-480.0,0.00019999,2]
[379948999,1755447051384,-209.14763512,0.0002,2]
[379949001,1755447051393,-500.0,0.0002,2]
[379949003,1755447051405,-198.0,0.0002,2]
[379949005,1755447051423,-1721.0,0.0002,2]
[379949008,1755447051446,-198.0,0.0002,2]
[379949010,1755447051456,-151.0,0.0002,2]
[379949012,1755447051466,-151.0,0.0002,2]
[379949014,1755447051476,-4000.0,0.0002,4]
[379949016,1755447051486,-19265.07711563,0.0002,2]
[379949018,1755447051496,-56286.11351892,0.0002,2]
[379949037,1755447051699,-3181.61952087,0.0002,2]
[379949039,1755447051714,-16822.97697393,0.0002,2]
[379949041,1755447051727,-398.04150106,0.0002,2]
[379949044,1755447051741,-8849.01242095,0.0002,2]
[379949046,1755447051758,-15119.38183508,0.0002,2]
[379949049,1755447051773,-5085.28764001,0.0002,2]
[379949057,1755447051844,-268.1996,0.0002,2]
[379949060,1755447051857,-25712.73214357,0.0002,2]
[379949062,1755447051869,-2093.62556752,0.0002,2]
[379949073,1755447052128,-151.0,0.00019178,2]
[379949076,1755447052140,-362.406828,0.00019178,2]
[379949078,1755447052152,-154.69475,0.00019229,2]
[379949080,1755447052164,-3331.898422,0.0002,2]
[379949083,1755447052188,-362.406828,0.00019178,2]
[379949085,1755447052200,-33392.59317199,0.0002,2]
[379949088,1755447052214,-1291.65754788,0.0002,2]
[379949134,1755447052664,-460.0,0.00019178,2]
[379949136,1755447052673,-362.406828,0.00019178,2]
[379949138,1755447052683,-362.406828,0.00019178,2]
[379949140,1755447052694,-151.0,0.00019178,2]
[379949142,1755447052704,-328.157562,0.00019178,2]
[379949144,1755447052713,-362.406828,0.00019229,2]
[379949146,1755447052723,-362.406828,0.00019229,2]
[379949148,1755447052732,-362.406828,0.00019329,2]
[379949150,1755447052742,-362.406828,0.00019329,2]
[379949152,1755447052751,-362.406828,0.00019329,2]
[379949154,1755447052761,-362.406828,0.00019644,2]
[379949155,1755447052770,-362.406828,0.00019726,2]
[379949157,1755447052780,-60783.43869817,0.0002,2]
[379949160,1755447052791,-41755.53628708,0.0002,2]
[379949162,1755447052803,-12718.8714128,0.0002,2]
[379949165,1755447052823,-362.406828,0.00019329,2]
[379949167,1755447052832,-23935.59373817,0.0002,2]
[379949169,1755447052842,-151.0,0.0002,2]
[379949171,1755447052852,-151.0,0.0002,2]
[379949173,1755447052861,-151.0,0.0002,2]
[379949175,1755447052871,-151.0,0.0002,2]
[379949177,1755447052880,-151.0,0.0002,2]
[379949201,1755447053121,-151.0,0.0002,2]
[379949204,1755447053136,-480.0,0.0002,2]
[379949206,1755447053147,-460.0,0.0002,2]
[379949208,1755447053156,-151.631436,0.0002,2]
[379949210,1755447053165,-151.0,0.0002,2]
[379949212,1755447053174,-151.0,0.0002,2]
[379949214,1755447053184,-480.0,0.0002,2]
[379949216,1755447053193,-151.0,0.0002,2]
[379949218,1755447053202,-151.0,0.0002,2]
[379949220,1755447053212,-151.0,0.0002,2]
[379949222,1755447053221,-151.0,0.0002,2]
[379949224,1755447053230,-151.0,0.0002,2]
[379949226,1755447053239,-245.550855,0.0002,2]
[379949228,1755447053249,-151.0,0.0002,2]
[379949229,1755447053260,-151.0,0.0002,2]
[379949231,1755447053269,-151.0,0.0002,2]
[379949233,1755447053278,-245.550855,0.0002,2]
[379949235,1755447053287,-239.274423,0.0002,2]
[379949237,1755447053296,-239.274423,0.0002,2]
[379949239,1755447053305,-151.0,0.0002,2]
[379949241,1755447053315,-151.0,0.0002,2]
[379949243,1755447053324,-151.0,0.0002,2]
[379949245,1755447053334,-480.0,0.0002,2]
[379949247,1755447053343,-714.199505,0.0002,2]
[379949249,1755447053352,-714.199505,0.0002,2]
[379949251,1755447053362,-151.0,0.0002,2]
[379949253,1755447053371,-480.0,0.0002,2]
[379949255,1755447053380,-151.0,0.0002,2]
[379949257,1755447053389,-480.0,0.0002,2]
[379949259,1755447053399,-151.0,0.0002,2]
[379949261,1755447053408,-480.0,0.0002,2]
[379949263,1755447053418,-460.0,0.0002,2]
[379949265,1755447053427,-151.0,0.0002,2]
[379949267,1755447053436,-151.0,0.0002,2]
[379949269,1755447053446,-480.0,0.0002,2]
[379949271,1755447053455,-480.0,0.0002,2]
[379949273,1755447053465,-480.0,0.0002,2]
[379949275,1755447053474,-480.0,0.0002,2]
[379949277,1755447053483,-1033.302612,0.0002,2]
[379949279,1755447053493,-1033.302612,0.0002,2]
[379949281,1755447053504,-151.0,0.0002,2]
[379949283,1755447053513,-151.0,0.0002,2]
[379949285,1755447053522,-151.0,0.0002,2]
[379949287,1755447053531,-480.0,0.0002,2]
[379949289,1755447053541,-460.0,0.0002,2]
[379949291,1755447053550,-151.0,0.0002,2]
[379949293,1755447053559,-151.0,0.0002,2]
[379949295,1755447053568,-185.797294,0.0002,2]
[379949297,1755447053578,-185.797294,0.0002,2]
[379949299,1755447053587,-185.797294,0.0002,2]
[379949301,1755447053597,-185.797294,0.0002,2]
[379949303,1755447053607,-480.0,0.0002,2]
[379949305,1755447053616,-3648.89,0.0002,2]
[379949307,1755447053626,-207.23886,0.0002,2]
[379949309,1755447053635,-1700.550371,0.0002,2]
[379949311,1755447053644,-1700.550371,0.0002,2]
[379949313,1755447053654,-482.5348218,0.0002,2]
[379949315,1755447053663,-480.0,0.0002,2]
[379949317,1755447053673,-162.296285,0.0002,2]
[379949319,1755447053682,-480.0,0.0002,2]
[379949321,1755447053692,-160.0,0.0002,3]
[379949323,1755447053701,-162.296285,0.0002,2]
[379949325,1755447053711,-480.0,0.0002,2]
[379949327,1755447053720,-440.0,0.0002,2]
[379949329,1755447053730,-192.302906,0.0002,2]
[379949331,1755447053740,-192.302906,0.0002,2]
[379949333,1755447053749,-225.638699,0.0002,2]
[379949335,1755447053759,-225.638699,0.0002,2]
[379949337,1755447053768,-196.95185,0.0002,2]
[379949339,1755447053777,-196.95185,0.0002,2]
[379949341,1755447053788,-480.0,0.0002,2]
[379949343,1755447053797,-151.0,0.0002,2]
[379949345,1755447053806,-151.0,0.0002,2]
[379949347,1755447053816,-196.95185,0.0002,2]
[379949348,1755447053825,-196.95185,0.0002,2]
[379949349,1755447053834,-225.638699,0.0002,2]
[379949350,1755447053843,-225.638699,0.0002,2]
[379949351,1755447053853,-480.0,0.0002,2]
[379949352,1755447053862,-557.83,0.0002,2]
[379949353,1755447053871,-480.0,0.0002,2]
[379949354,1755447053881,-2707.54,0.0002,2]
[379949355,1755447053890,-999.75,0.0002,2]
[379949356,1755447053899,-480.0,0.0002,2]
[379949357,1755447053908,-151.0,0.0002,2]
[379949358,1755447053917,-151.0,0.0002,2]
[379949359,1755447053926,-588.85,0.0002,2]
[379949360,1755447053935,-512.61,0.0002,2]
[379949361,1755447053946,-151.0,0.0002,2]
[379949362,1755447053957,-151.0,0.0002,2]
[379949363,1755447053966,-151.0,0.0002,2]
[379949364,1755447053975,-151.0,0.0002,2]
[379949365,1755447053986,-2221.98,0.0002,2]
[379949366,1755447053995,-151.0,0.0002,2]
[379949367,1755447054005,-151.0,0.0002,2]
[379949368,1755447054014,-151.0,0.0002,2]
[379949369,1755447054024,-151.0,0.0002,2]
[379949370,1755447054035,-480.0,0.0002,2]
[379949371,1755447054045,-1059.03,0.0002,2]
[379949372,1755447054054,-266.524174,0.0002,2]
[379949373,1755447054063,-266.524174,0.0002,2]
[379949374,1755447054072,-311.0064218,0.0002,2]
[379949375,1755447054081,-266.524174,0.0002,2]
[379949376,1755447054090,-266.524174,0.0002,2]
[379949377,1755447054099,-996.4,0.0002,2]
[379949378,1755447054109,-480.0,0.0002,2]
[379949379,1755447054118,-480.0,0.0002,2]
[379949380,1755447054127,-480.0,0.0002,2]
[379949381,1755447054137,-480.0,0.0002,2]
[379949382,1755447054146,-1396.993208,0.0002,2]
[379949383,1755447054156,-1396.993208,0.0002,2]
[379949384,1755447054166,-151.0,0.0002,2]
[379949385,1755447054175,-480.0,0.0002,2]
[379949386,1755447054185,-151.0,0.0002,2]
[379949387,1755447054195,-1396.993208,0.0002,2]
[379949388,1755447054204,-1396.993208,0.0002,2]
[379949389,1755447054213,-1038.69,0.0002,2]
[379949390,1755447054223,-562.138195,0.0002,2]
[379949391,1755447054232,-562.138195,0.0002,2]
[379949392,1755447054242,-562.138195,0.0002,2]
[379949393,1755447054252,-562.138195,0.0002,2]
[379949394,1755447054262,-460.0,0.0002,2]
[379949395,1755447054271,-480.0,0.0002,2]
[379949396,1755447054282,-480.0,0.0002,2]
[379949397,1755447054292,-4225.92,0.0002,2]
[379949398,1755447054302,-601.18,0.0002,2]
[379949399,1755447054312,-480.0,0.0002,2]
[379949400,1755447054322,-1139.88,0.0002,2]
[379949401,1755447054332,-480.0,0.0002,2]
[379949402,1755447054343,-362.406828,0.0002,2]
[379949403,1755447054353,-362.406828,0.0002,2]
[379949404,1755447054363,-1365.80848223,0.00020015,2]
[379949405,1755447054373,-13671.422054,0.00020023,2]
[379949406,1755447054383,-9000.0,0.00020088,2]
[379949407,1755447054393,-500.0,0.00020095,2]
[379949408,1755447054403,-5002.95223816,0.0002014,2]
[379949409,1755447054413,-362.406828,0.0002014,2]
[379949410,1755447054423,-153.0,0.00020163,2]
[379949411,1755447054433,-8000.0,0.00020168,2]
[379949412,1755447054443,-151.0,0.00020168,2]
[379949413,1755447054453,-562.138195,0.00020168,2]
[379949414,1755447054463,-562.138195,0.00020168,2]
[379949415,1755447054472,-563.004184,0.00020187,2]
[379949416,1755447054482,-1700.550371,0.00020199,2]
[379949417,1755447054492,-1700.550371,0.00020199,2]
[379949418,1755447054502,-162.296285,0.00020199,2]
[379949419,1755447054512,-162.296285,0.00020199,2]
[379949420,1755447054522,-192.302906,0.00020199,2]